bitfinex/quotes_SOLUSD_20241231
["timestamp","ask_amount","ask_price","bid_price","bid_amount"]
[1735666761720,40.79846898,194.92,194.84,40.79846898]
[1735666761917,40.79846898,194.89,194.81,40.79846898]
[1735666762119,40.79846898,194.83,194.78,6.4105]
[1735666762318,40.79846898,194.9,194.74,12.837]
[1735666762319,40.79846898,194.79,194.74,12.837]
[1735666762544,40.79846898,194.79,194.71,47.20896898]
[1735666762837,40.79846898,194.9,194.73,40.79846898]
[1735666762838,40.79846898,194.81,194.73,40.79846898]
[1735666763214,40.79846898,194.79,194.72,12.8389]
[1735666763413,40.79846898,194.79,194.71,47.20896898]
[1735666763637,40.79846898,194.77,194.71,6.4105]
[1735666763937,40.79846898,194.8,194.72,53.63736898]
[1735666764122,40.79846898,194.77,194.71,6.4105]
[1735666764435,40.79846898,194.75,194.71,6.4105]
[1735666764624,40.79846898,194.73,194.67,40.79846898]
[1735666764826,40.79846898,194.77,194.69,40.79846898]
[1735666765036,40.79846898,194.83,194.73,40.79846898]
[1735666765251,40.79846898,194.83,194.75,40.79846898]
[1735666765749,40.79846898,194.81,194.73,40.79846898]
[1735666766310,40.79846898,194.9,194.68,12.8415]
[1735666766311,40.79846898,194.79,194.68,12.8415]
[1735666766651,40.79846898,194.79,194.65,51.3742]
[1735666766652,40.79846898,194.73,194.65,40.79846898]
[1735666767144,40.79846898,194.73,194.54,5.0]
[1735666767145,40.79846898,194.67,194.56,12.8493]
[1735666767345,40.79846898,194.64,194.56,40.79846898]
[1735666767514,40.79846898,194.64,194.56,53.64796898]
[1735666767715,40.79846898,194.66,194.58,40.79846898]
[1735666767911,40.79846898,194.64,194.56,53.64796898]
[1735666768219,40.79846898,194.66,194.58,40.79846898]
[1735666768426,40.79846898,194.68,194.6,40.79846898]
[1735666768630,40.79846898,194.68,194.61,23.776884]
[1735666769049,40.79846898,194.66,194.58,40.79846898]
[1735666769843,10.0,194.79,194.59,12.8475]
[1735666770049,46.0364672,194.96,194.58,40.79846898]
[1735666770050,40.79846898,194.65,194.58,40.79846898]
[1735666770248,40.79846898,194.65,194.56,40.79846898]
[1735666770552,40.79846898,194.69,194.56,5.0]
[1735666770722,40.79846898,194.8,194.6,40.79846898]
[1735666770723,40.79846898,194.67,194.6,40.79846898]
[1735666770920,40.79846898,194.67,194.47,6.4105]
[1735666770921,40.79846898,194.63,194.49,5.0]
[1735666771157,40.79846898,194.63,194.54,40.79846898]
[1735666771444,40.79846898,194.65,194.56,40.79846898]
[1735666771621,5.0,194.86,194.64,40.79846898]
[1735666771822,15.74378137,195.16,194.6,40.79846898]
[1735666771823,40.79846898,194.75,194.66,40.79846898]
[1735666772448,40.79846898,194.73,194.66,40.79846898]
[1735666772843,40.79846898,194.71,194.63,6.4105]
[1735666773050,40.79846898,194.69,194.63,6.4105]
[1735666773246,40.79846898,194.65,194.57,20.78648926]
[1735666773441,40.79846898,194.67,194.6,40.79846898]
[1735666774343,40.79846898,194.65,194.58,40.79846898]
[1735666774646,40.79846898,194.67,194.58,40.79846898]
[1735666774831,40.79846898,194.67,194.6,40.79846898]
[1735666775027,40.79846898,194.63,194.57,20.78648926]
[1735666775345,40.79846898,194.61,194.57,20.78648926]
[1735666776046,40.79846898,194.59,194.57,20.78648926]
[1735666779353,20.0,194.53,194.42,1.5395]
[1735666779654,64.57535298,194.58,194.32,5.0]
[1735666779655,40.79846898,194.46,194.38,40.79846898]
[1735666780656,40.79846898,194.42,194.34,47.28396898]
[1735666781441,40.79846898,194.5,194.36,40.79846898]
[1735666781442,40.79846898,194.44,194.36,40.79846898]
[1735666781644,35.3480846,194.58,194.38,40.79846898]
[1735666781645,40.79846898,194.46,194.38,40.79846898]
[1735666781859,40.79846898,194.46,194.39,23.776884]
[1735666782067,40.79846898,194.52,194.44,40.79846898]
[1735666782264,40.79846898,194.52,194.45,23.776884]
[1735666782564,40.79846898,194.52,194.46,23.776884]
[1735666782882,40.79846898,194.52,194.44,40.79846898]
[1735666783041,40.79846898,194.49,194.41,40.79846898]
[1735666783234,40.79846898,194.49,194.42,23.776884]
[1735666783435,45.79846898,194.6,194.4,40.79846898]
[1735666783635,40.79846898,194.48,194.41,23.776884]
[1735666784567,40.79846898,194.47,194.39,60.79846898]
[1735666784766,40.79846898,194.43,194.35,40.79846898]
[1735666785279,40.79846898,194.47,194.39,40.79846898]
[1735666785438,40.79846898,194.43,194.36,40.79846898]
[1735666785970,40.79846898,194.45,194.38,40.79846898]
[1735666786151,40.79846898,194.45,194.38,40.29846898]
[1735666786350,40.79846898,194.45,194.39,23.776884]
[1735666786659,40.79846898,194.49,194.42,40.79846898]
[1735666786961,40.79846898,194.45,194.37,40.79846898]
[1735666787149,40.79846898,194.43,194.35,40.79846898]
[1735666787349,40.79846898,194.44,194.34,20.0]
[1735666787549,40.79846898,194.48,194.39,40.79846898]
[1735666787745,40.79846898,194.48,194.34,20.0]
[1735666787746,40.79846898,194.5,194.42,40.79846898]
[1735666787952,40.79846898,194.52,194.44,40.79846898]
[1735666788261,40.79846898,194.54,194.46,40.79846898]
[1735666788948,40.79846898,194.52,194.44,40.79846898]
[1735666789437,40.79846898,194.54,194.47,23.776884]
[1735666789640,40.79846898,194.56,194.48,40.79846898]
[1735666789877,40.79846898,194.58,194.5,40.79846898]
[1735666790041,40.79846898,194.6,194.53,6.0923]
[1735666790246,40.79846898,194.63,194.55,40.79846898]
[1735666790542,40.79846898,194.65,194.57,40.79846898]
[1735666791082,40.79846898,194.65,194.59,40.79846898]
[1735666791241,40.79846898,194.69,194.61,40.79846898]
[1735666791436,40.79846898,194.71,194.63,40.79846898]
[1735666791757,40.79846898,194.73,194.65,40.79846898]
[1735666791951,40.79846898,194.8,194.55,1.6091]
[1735666791952,40.79846898,194.69,194.55,1.6091]
[1735666792276,40.79846898,194.71,194.63,40.79846898]
[1735666792484,40.79846898,194.77,194.69,40.79846898]
[1735666792644,40.79846898,194.81,194.72,40.79846898]
[1735666793343,40.79846898,194.81,194.7,1.568]
[1735666793542,40.79846898,194.81,194.74,40.79846898]
[1735666793954,40.79846898,194.81,194.72,40.79846898]
[1735666794155,40.79846898,194.83,194.74,40.79846898]
[1735666794488,40.79846898,194.81,194.72,40.79846898]
[1735666794692,40.79846898,194.75,194.69,6.3383]
[1735666794989,40.79846898,194.8,194.66,40.79846898]
[1735666794990,40.79846898,194.73,194.66,40.79846898]
[1735666795161,40.79846898,194.73,194.64,40.79846898]
[1735666795359,40.79846898,194.71,194.62,48.70476898]
[1735666795668,40.79846898,194.73,194.66,40.79846898]
[1735666795869,40.79846898,194.77,194.68,40.79846898]
[1735666796669,40.79846898,194.77,194.7,40.79846898]
[1735666796877,40.79846898,194.79,194.7,40.79846898]
[1735666797064,40.79846898,194.79,194.72,40.79846898]
[1735666797265,40.79846898,194.81,194.68,20.0]
[1735666797476,40.79846898,194.81,194.72,40.79846898]
[1735666797679,40.79846898,194.81,194.74,40.79846898]
[1735666797982,40.79846898,194.85,194.78,40.79846898]
[1735666798162,40.79846898,194.85,194.71,11.1973]
[1735666798163,40.79846898,194.85,194.76,40.79846898]
[1735666798759,40.79846898,194.83,194.74,40.79846898]
[1735666798963,40.79846898,194.75,194.63,11.1973]
[1735666799290,40.79846898,194.75,194.68,40.79846898]
[1735666799579,40.79846898,194.79,194.7,40.79846898]
[1735666800079,40.79846898,194.77,194.68,40.79846898]
[1735666800379,40.79846898,194.77,194.7,40.79846898]
[1735666800683,40.79846898,194.77,194.68,40.79846898]
[1735666801283,40.79846898,194.77,194.67,40.79846898]
[1735666801487,40.79846898,194.71,194.63,46.99576898]
[1735666801693,40.79846898,194.69,194.63,6.1973]
[1735666801985,40.79846898,194.75,194.65,40.79846898]
[1735666802177,40.79846898,194.75,194.67,40.79846898]
[1735666802383,40.79846898,194.71,194.63,46.99576898]
[1735666802566,40.79846898,194.67,194.53,6.1973]
[1735666802766,40.79846898,194.67,194.6,40.79846898]
[1735666802991,40.79846898,194.63,194.56,40.79846898]
[1735666803288,40.79846898,194.63,194.53,6.1973]
[1735666803289,40.79846898,194.61,194.53,6.1973]
[1735666803593,40.79846898,194.59,194.5,40.79846898]
[1735666803799,40.79846898,194.61,194.54,40.79846898]
[1735666804014,40.79846898,194.67,194.58,40.79846898]
[1735666804191,40.79846898,194.65,194.58,40.79846898]
[1735666804492,40.79846898,194.7,194.58,40.79846898]
[1735666804493,40.79846898,194.67,194.58,40.79846898]
[1735666804674,40.79846898,194.69,194.6,40.79846898]
[1735666804867,40.79846898,194.71,194.64,40.79846898]
[1735666805071,40.79846898,194.75,194.68,40.79846898]
[1735666805402,40.79846898,194.77,194.68,40.79846898]
[1735666805614,6.00341608,194.91,194.72,40.79846898]
[1735666805615,40.79846898,194.81,194.72,40.79846898]
[1735666805890,40.79846898,194.79,194.72,40.79846898]
[1735666806076,40.79846898,194.77,194.71,40.79846898]
[1735666806269,40.79846898,194.77,194.69,40.79846898]
[1735666806469,40.79846898,194.73,194.65,40.79846898]
[1735666806668,40.79846898,194.69,194.61,40.79846898]
[1735666806889,40.79846898,194.62,194.54,40.79846898]
[1735666807069,40.79846898,194.6,194.53,6.1973]
[1735666807268,40.79846898,194.62,194.53,6.1973]
[1735666807467,40.79846898,194.6,194.53,6.1973]
[1735666807671,40.79846898,194.64,194.54,40.79846898]
[1735666807895,40.79846898,194.66,194.56,40.79846898]
[1735666808197,40.79846898,194.66,194.58,40.79846898]
[1735666808574,40.79846898,194.68,194.6,40.79846898]
[1735666808770,40.79846898,194.64,194.56,40.79846898]
[1735666809171,40.79846898,194.58,194.44,20.583259]
[1735666809373,40.79846898,194.55,194.45,40.79846898]
[1735666809781,40.79846898,194.55,194.47,40.79846898]
[1735666810002,40.79846898,194.55,194.41,6.1973]
[1735666810305,42.08707651,194.57,194.49,40.79846898]
[1735666810472,40.79846898,194.57,194.49,40.79846898]
[1735666810999,40.79846898,194.55,194.45,40.79846898]
[1735666811175,40.79846898,194.49,194.41,46.99576898]
[1735666811377,40.79846898,194.47,194.41,6.1973]
[1735666811876,40.79846898,194.49,194.41,46.99576898]
[1735666812073,40.79846898,194.53,194.45,40.79846898]
[1735666812493,40.79846898,194.57,194.49,40.79846898]
[1735666812796,40.79846898,194.63,194.55,40.79846898]
[1735666813100,40.79846898,194.69,194.61,40.79846898]
[1735666813299,40.79846898,194.71,194.63,40.79846898]
[1735666813786,40.79846898,194.71,194.61,60.79846898]
[1735666813982,40.79846898,194.8,194.61,60.79846898]
[1735666813983,40.79846898,194.75,194.67,40.79846898]
[1735666814303,40.79846898,194.77,194.69,40.79846898]
[1735666815074,40.79846898,194.79,194.73,40.79846898]
[1735666815279,40.79846898,194.81,194.73,40.79846898]
[1735666815482,40.79846898,194.79,194.71,40.79846898]
[1735666815689,40.79846898,194.72,194.64,40.79846898]
[1735666816092,40.79846898,194.74,194.67,40.79846898]
[1735666816988,40.79846898,194.79,194.71,40.79846898]
[1735666817183,40.79846898,194.81,194.73,40.79846898]
[1735666817382,40.79846898,194.83,194.75,40.79846898]
[1735666817585,40.79846898,194.76,194.69,40.79846898]
[1735666817792,40.79846898,194.74,194.67,40.79846898]
[1735666818499,40.79846898,194.75,194.69,40.79846898]
[1735666818699,40.79846898,194.75,194.67,40.79846898]
[1735666819894,40.79846898,194.7,194.62,40.79846898]
[1735666820293,40.79846898,194.71,194.63,40.79846898]
[1735666821203,40.79846898,194.68,194.6,40.79846898]
[1735666821376,40.79846898,194.68,194.61,40.79846898]
[1735666821779,40.79846898,194.67,194.59,40.79846898]
[1735666821994,40.79846898,194.64,194.57,6.0383]
[1735666822197,40.79846898,194.59,194.55,1.6398]
[1735666822522,45.79846898,194.7,194.47,40.79846898]
[1735666822523,40.79846898,194.56,194.47,40.79846898]
[1735666822683,40.79846898,194.53,194.46,1.6398]
[1735666822882,40.79846898,194.54,194.47,40.79846898]
[1735666823084,40.79846898,194.57,194.49,40.79846898]
[1735666823305,10.0,194.72,194.53,40.79846898]
[1735666823486,40.79846898,194.62,194.55,40.79846898]
[1735666823687,40.79846898,194.64,194.57,40.79846898]
[1735666823893,40.79846898,194.6,194.53,40.79846898]
[1735666824114,40.79846898,194.62,194.55,40.79846898]
[1735666824310,40.79846898,194.64,194.57,40.79846898]
[1735666824513,40.79846898,194.62,194.55,40.79846898]
[1735666825010,40.79846898,194.6,194.52,40.79846898]
[1735666825187,40.79846898,194.59,194.52,40.79846898]
[1735666825387,40.79846898,194.6,194.53,40.79846898]
[1735666825603,40.79846898,194.56,194.48,40.79846898]
[1735666825789,40.79846898,194.52,194.46,1.6398]
[1735666826204,40.79846898,194.5,194.43,6.0383]
[1735666826587,40.79846898,194.49,194.43,6.0383]
[1735666826912,40.79846898,194.52,194.45,40.79846898]
[1735666827210,40.79846898,194.55,194.48,40.79846898]
[1735666827394,40.79846898,194.56,194.49,40.79846898]
[1735666827706,40.79846898,194.53,194.46,40.79846898]
[1735666827907,40.79846898,194.6,194.43,6.0383]
[1735666827908,40.79846898,194.52,194.45,40.79846898]
[1735666828096,40.79846898,194.54,194.46,40.79846898]
[1735666828291,40.79846898,194.54,194.47,40.79846898]
[1735666828510,40.79846898,194.54,194.46,40.79846898]
[1735666828905,40.79846898,194.54,194.47,40.79846898]
[1735666829214,40.79846898,194.48,194.28,10.0]
[1735666829507,40.79846898,194.48,194.41,40.79846898]
[1735666830223,40.79846898,194.49,194.42,40.79846898]
[1735666830523,40.79846898,194.46,194.39,40.79846898]
[1735666830723,40.79846898,194.48,194.41,40.79846898]
[1735666831031,40.79846898,194.48,194.4,40.79846898]
[1735666831335,40.79846898,194.49,194.41,40.79846898]
[1735666831902,40.79846898,194.5,194.43,40.79846898]
[1735666832227,40.79846898,194.51,194.44,40.79846898]
[1735666832431,40.79846898,194.5,194.43,40.79846898]
[1735666832605,40.79846898,194.46,194.39,40.79846898]
[1735666833011,40.79846898,194.47,194.39,40.79846898]
[1735666833218,40.79846898,194.47,194.4,40.79846898]
[1735666833931,40.79846898,194.48,194.4,40.79846898]
[1735666834536,40.79846898,194.48,194.41,12.8594]
[1735666834695,40.79846898,194.46,194.41,12.8594]
[1735666835607,40.79846898,194.42,194.34,12.864]
[1735666835937,40.79846898,194.4,194.34,12.864]
[1735666836108,40.79846898,194.45,194.38,40.79846898]
[1735666837299,40.79846898,194.45,194.38,12.861]
[1735666837504,40.79846898,194.43,194.38,12.861]
[1735666838011,40.79846898,194.44,194.38,12.861]
[1735666838938,40.79846898,194.45,194.39,40.79846898]
[1735666839107,40.79846898,194.46,194.39,40.79846898]
[1735666839304,40.79846898,194.48,194.41,40.79846898]
[1735666839615,40.79846898,194.46,194.39,40.79846898]
[1735666839804,40.79846898,194.43,194.37,40.79846898]
[1735666840001,40.79846898,194.44,194.38,40.79846898]
[1735666840203,40.79846898,194.47,194.41,40.79846898]
[1735666840813,40.79846898,194.48,194.42,12.8587]
[1735666841536,40.79846898,194.47,194.42,12.8587]
[1735666841836,40.79846898,194.49,194.42,40.79846898]
[1735666842015,40.79846898,194.48,194.41,40.79846898]
[1735666842212,40.79846898,194.47,194.41,40.79846898]
[1735666842408,40.79846898,194.48,194.41,40.79846898]
[1735666842918,40.79846898,194.47,194.42,12.8587]
[1735666843244,40.79846898,194.49,194.42,53.65716898]
[1735666843408,40.79846898,194.52,194.45,40.79846898]
[1735666843927,40.79846898,194.49,194.42,53.65716898]
[1735666844096,40.79846898,194.47,194.42,12.8587]
[1735666844708,40.79846898,194.48,194.42,12.8587]
[1735666845434,53.64576898,194.6,194.38,12.8612]
[1735666845435,40.79846898,194.44,194.38,12.8612]
[1735666845603,40.79846898,194.42,194.38,12.8612]
[1735666846147,40.79846898,194.43,194.38,12.8612]
[1735666846535,5.0,194.57,194.42,40.79846898]
[1735666846734,40.79846898,194.53,194.46,40.79846898]
[1735666846934,40.79846898,194.52,194.45,40.79846898]
[1735666847130,40.79846898,194.53,194.46,40.79846898]
[1735666847348,40.79846898,194.54,194.47,40.79846898]
[1735666847518,40.79846898,194.53,194.46,40.79846898]
[1735666848241,40.79846898,194.54,194.47,40.79846898]
[1735666848742,40.79846898,194.59,194.52,40.79846898]
[1735666848948,40.79846898,194.61,194.54,40.79846898]
[1735666849243,40.79846898,194.61,194.48,20.0]
[1735666849244,40.79846898,194.66,194.59,53.64596898]
[1735666849411,40.79846898,194.68,194.59,12.8475]
[1735666849851,40.79846898,194.7,194.63,40.79846898]
[1735666850150,40.79846898,194.74,194.67,40.79846898]
[1735666850319,40.79846898,194.76,194.69,40.79846898]
[1735666850518,40.79846898,194.75,194.68,40.79846898]
[1735666850746,40.79846898,194.77,194.7,40.79846898]
[1735666851114,40.79846898,194.78,194.71,40.79846898]
[1735666851315,40.79846898,194.8,194.74,40.79846898]
[1735666851514,40.79846898,194.8,194.73,40.79846898]
[1735666852020,40.79846898,194.8,194.67,12.8417]
[1735666852021,40.79846898,194.83,194.76,40.79846898]
[1735666852222,40.79846898,194.84,194.77,40.79846898]
[1735666852428,40.79846898,194.85,194.78,40.79846898]
[1735666852826,40.79846898,194.88,194.81,40.79846898]
[1735666853153,40.79846898,194.89,194.82,40.79846898]
[1735666853336,40.79846898,194.91,194.84,40.79846898]
[1735666853528,5.0,194.94,194.82,40.79846898]
[1735666853529,40.79846898,194.89,194.82,40.79846898]
[1735666853720,40.79846898,194.87,194.8,40.79846898]
[1735666853946,40.79846898,194.89,194.82,40.79846898]
[1735666854167,17.8236,194.96,194.76,6.0488]
[1735666854168,40.79846898,194.9,194.83,40.79846898]
[1735666854367,40.79846898,194.87,194.8,40.79846898]
[1735666854680,5.0,194.92,194.76,46.84726898]
[1735666854681,40.79846898,194.83,194.76,46.84726898]
[1735666854845,40.79846898,194.79,194.73,40.79846898]
[1735666855046,40.79846898,194.76,194.69,46.84726898]
[1735666855248,25.0,194.83,194.72,40.79846898]
[1735666855547,40.79846898,194.78,194.71,40.79846898]
[1735666855752,40.79846898,194.75,194.68,40.79846898]
[1735666856070,40.79846898,194.7,194.63,41.12916898]
[1735666856251,40.79846898,194.69,194.63,0.3307]
[1735666856453,40.79846898,194.64,194.63,0.3307]
[1735666856658,5.0,194.73,194.63,0.3307]
[1735666856858,40.79846898,194.7,194.63,41.12916898]
[1735666857243,40.79846898,194.71,194.64,40.79846898]
[1735666858679,40.79846898,194.68,194.63,0.3307]
[1735666859039,40.79846898,194.69,194.63,0.3307]
[1735666859275,40.79846898,194.7,194.63,41.12916898]
[1735666859775,60.79846898,194.7,194.63,41.12916898]
[1735666860160,40.79846898,194.64,194.63,0.3307]
[1735666860552,40.79846898,194.68,194.63,0.3307]
[1735666861061,40.79846898,194.7,194.63,41.12916898]
[1735666861373,40.79846898,194.68,194.63,0.3307]
[1735666861573,40.79846898,194.65,194.63,0.3307]
[1735666861746,5.0,194.69,194.63,0.3307]
[1735666861747,40.79846898,194.64,194.63,0.3307]
[1735666861942,5.0,194.68,194.63,0.3307]
[1735666861943,40.79846898,194.65,194.63,0.3307]
[1735666862156,40.79846898,194.68,194.63,0.3307]
[1735666862385,25.6623,194.84,194.65,40.79846898]
[1735666862386,40.79846898,194.72,194.65,40.79846898]
[1735666863053,40.79846898,194.73,194.66,40.79846898]
[1735666863256,40.79846898,194.71,194.65,40.79846898]
[1735666863780,40.79846898,194.66,194.63,0.3307]
[1735666864077,40.79846898,194.64,194.63,0.3307]
[1735666864458,64.57535298,194.64,194.63,0.3307]
[1735666864975,10.0,194.65,194.63,0.3307]
[1735666864976,40.79846898,194.65,194.63,0.3307]
[1735666865185,40.79846898,194.66,194.63,0.3307]
[1735666865477,40.79846898,194.65,194.63,0.3307]
[1735666865664,40.79846898,194.68,194.63,0.3307]
[1735666865848,40.79846898,194.67,194.63,0.3307]
[1735666866166,40.79846898,194.64,194.63,0.3307]
[1735666866382,69.57535298,194.64,194.63,0.3307]
[1735666866553,20.0,194.57,194.49,40.79846898]
[1735666866750,40.79846898,194.54,194.48,6.2999]
[1735666867081,40.79846898,194.52,194.46,40.79846898]
[1735666867379,40.79846898,194.56,194.49,40.79846898]
[1735666867601,40.79846898,194.57,194.5,40.79846898]
[1735666867886,40.79846898,194.58,194.51,40.79846898]
[1735666868245,40.79846898,194.58,194.43,12.858]
[1735666868246,40.79846898,194.55,194.43,12.858]
[1735666868472,40.79846898,194.52,194.45,40.79846898]
[1735666868998,40.79846898,194.53,194.46,40.79846898]
[1735666869693,40.79846898,194.57,194.5,40.79846898]
[1735666869893,40.79846898,194.52,194.45,40.79846898]
[1735666870075,40.79846898,194.51,194.45,40.79846898]
[1735666870273,40.79846898,194.54,194.42,6.2999]
[1735666870483,10.0,194.63,194.49,40.79846898]
[1735666870687,40.79846898,194.56,194.49,40.79846898]
[1735666870872,40.79846898,194.55,194.48,40.79846898]
[1735666871078,40.79846898,194.54,194.47,40.79846898]
[1735666871397,40.79846898,194.6,194.53,40.79846898]
[1735666871897,40.79846898,194.61,194.54,40.79846898]
[1735666872097,40.79846898,194.58,194.52,40.79846898]
[1735666872300,40.79846898,194.61,194.54,40.79846898]
[1735666872634,40.79846898,194.62,194.55,40.79846898]
[1735666872797,40.79846898,194.63,194.56,40.79846898]
[1735666873095,40.79846898,194.67,194.6,40.79846898]
[1735666873276,40.79846898,194.66,194.59,40.79846898]
[1735666873478,40.79846898,194.61,194.55,40.79846898]
[1735666873667,20.0,194.67,194.55,40.79846898]
[1735666873867,26.39394014,194.73,194.52,12.8521]
[1735666874071,38.425996,194.73,194.52,12.8521]
[1735666874378,20.0,194.7,194.52,12.8521]
[1735666874586,23.776884,194.69,194.52,12.8521]
[1735666874778,40.79846898,194.65,194.58,40.79846898]
[1735666875276,40.79846898,194.69,194.62,40.79846898]
[1735666875487,40.79846898,194.72,194.65,40.79846898]
[1735666875786,40.79846898,194.76,194.69,40.79846898]
[1735666875987,40.79846898,194.78,194.71,40.79846898]
[1735666876174,7.73704564,194.82,194.74,40.79846898]
[1735666876377,48.53551462,194.82,194.75,40.79846898]
[1735666876589,40.79846898,194.85,194.78,40.79846898]
[1735666876787,40.79846898,194.87,194.8,40.79846898]
[1735666876968,40.79846898,194.87,194.7,20.0]
[1735666876969,40.79846898,194.88,194.82,40.79846898]
[1735666877171,7.73704564,194.9,194.71,7.79]
[1735666877477,7.73704564,194.9,194.71,12.79]
[1735666877679,40.79846898,194.89,194.82,40.79846898]
[1735666877879,40.79846898,194.87,194.8,40.79846898]
[1735666878086,20.0,194.91,194.82,40.79846898]
[1735666879986,40.79846898,194.9,194.83,40.79846898]
[1735666880188,40.79846898,194.94,194.87,40.79846898]
[1735666880376,40.79846898,194.95,194.88,40.79846898]
[1735666880571,22.8175,195.05,194.9,40.79846898]
[1735666880892,40.79846898,195.01,194.93,40.79846898]
[1735666881099,40.79846898,195.03,194.95,40.79846898]
[1735666881294,40.79846898,195.04,194.97,40.79846898]
[1735666881475,40.79846898,195.05,194.98,40.79846898]
[1735666881675,40.79846898,195.06,194.99,40.79846898]
[1735666881880,40.79846898,195.05,194.98,40.79846898]
[1735666882108,40.79846898,195.06,194.99,40.79846898]
[1735666882317,40.79846898,195.08,195.0,40.79846898]
[1735666882636,40.79846898,195.1,195.03,40.79846898]
[1735666882816,40.79846898,195.11,195.03,40.79846898]
[1735666882975,40.79846898,195.11,195.04,40.79846898]
[1735666883170,40.79846898,195.12,195.04,40.79846898]
[1735666883406,40.79846898,195.12,194.99,40.79846898]
[1735666883407,40.79846898,195.06,194.99,40.79846898]
[1735666883627,10.0,195.1,194.94,40.79846898]
[1735666883779,40.79846898,194.98,194.93,5.4378]
[1735666883998,20.0,195.03,194.93,5.4378]
[1735666884199,10.0,195.11,194.93,46.23626898]
[1735666884411,40.79846898,195.04,194.96,40.79846898]
[1735666884613,40.79846898,195.05,194.98,40.79846898]
[1735666884810,40.79846898,195.04,194.97,40.79846898]
[1735666885142,40.79846898,195.05,194.97,40.79846898]
[1735666885435,5.80624414,195.14,195.01,40.79846898]
[1735666885631,5.0,195.15,195.01,40.79846898]
[1735666885797,20.537261,195.15,194.94,12.8244]
[1735666885997,1.66761678,195.18,194.95,33.776884]
[1735666886211,46.60471312,195.2,194.99,1.5162]
[1735666886412,7.11041282,195.19,194.99,21.5162]
[1735666886613,40.79846898,195.12,195.04,40.79846898]
[1735666886829,40.79846898,195.09,195.02,40.79846898]
[1735666887146,40.79846898,195.11,195.04,40.79846898]
[1735666887299,40.79846898,195.14,195.07,40.79846898]
[1735666887500,40.79846898,195.15,195.08,40.79846898]
[1735666888032,7.11041282,195.19,195.1,40.79846898]
[1735666888033,40.79846898,195.18,195.1,40.79846898]
[1735666888334,7.11041282,195.19,195.12,40.79846898]
[1735666888335,40.79846898,195.19,195.12,40.79846898]
[1735666888621,40.79846898,195.16,195.09,40.79846898]
[1735666888794,5.0,195.24,195.08,6.0138]
[1735666888795,23.776884,195.22,195.08,6.0138]
[1735666889001,10.92054414,195.28,195.08,4.86]
[1735666889002,12.8036,195.26,195.08,4.86]
[1735666889336,7.11366171,195.24,195.08,4.86]
[1735666889521,40.79846898,195.2,195.13,40.79846898]
[1735666889726,40.79846898,195.23,195.16,40.79846898]
[1735666889901,40.79846898,195.22,195.14,40.79846898]
[1735666890099,20.525772,195.27,195.11,11.5162]
[1735666890400,40.79846898,195.4,195.11,11.5162]
[1735666890401,12.7959,195.38,195.14,20.0]
[1735666890604,12.7959,195.38,195.14,30.0]
[1735666890605,20.0,195.35,195.14,30.0]
[1735666890803,5.0,195.33,195.11,1.5162]
[1735666891107,20.0,195.27,195.11,1.5162]
[1735666891311,40.79846898,195.22,195.15,40.79846898]
[1735666891760,40.79846898,195.23,195.15,40.79846898]
[1735666892118,40.79846898,195.25,195.17,40.79846898]
[1735666892330,40.79846898,195.27,195.19,40.79846898]
[1735666892636,40.79846898,195.23,195.11,1.5162]
[1735666892831,43.776884,195.25,195.11,1.5162]
[1735666893218,23.776884,195.27,195.11,1.5162]
[1735666893435,12.8022,195.28,195.11,1.5162]
[1735666893629,20.0,195.25,195.11,1.5162]
[1735666893840,40.79846898,195.23,195.16,40.79846898]
[1735666894032,40.79846898,195.21,195.13,40.79846898]
[1735666894230,23.776884,195.25,195.12,40.79846898]
[1735666894540,40.79846898,195.23,195.15,40.79846898]
[1735666894842,5.0,195.36,195.12,5.0]
[1735666895034,5.0,195.35,195.11,1.5162]
[1735666895351,20.0,195.29,195.11,21.5162]
[1735666895529,20.0,195.29,195.12,12.8126]
[1735666895846,40.79846898,195.25,195.17,40.79846898]
[1735666896145,20.519304,195.33,195.22,40.79846898]
[1735666896444,12.7965,195.37,195.24,40.79846898]
[1735666896445,40.79846898,195.32,195.24,40.79846898]
[1735666896647,40.79846898,195.34,195.26,40.79846898]
[1735666897029,40.79846898,195.36,195.26,40.79846898]
[1735666897338,20.512687,195.4,195.24,40.79846898]
[1735666897339,40.79846898,195.34,195.24,40.79846898]
[1735666897657,40.79846898,195.32,195.24,40.79846898]
[1735666898526,40.79846898,195.26,195.18,40.79846898]
[1735666898730,40.79846898,195.21,195.13,40.79846898]
[1735666898931,40.79846898,195.19,195.11,42.31466898]
[1735666899348,40.79846898,195.15,195.07,40.79846898]
[1735666899663,40.79846898,195.17,195.09,40.79846898]
[1735666899825,40.79846898,195.13,195.05,40.79846898]
[1735666900027,12.7998,195.32,195.12,20.0]
[1735666900232,40.79846898,195.27,195.17,40.79846898]
[1735666900432,40.79846898,195.27,195.19,40.79846898]